bitfinex/quotes_BTCUSD_20211001
["timestamp","ask_amount","ask_price","bid_price","bid_amount"]
[1633124691539,0.347458,48161.0,48159.0,0.00187119]
[1633124691941,0.347458,48161.0,48154.0,0.00187123]
[1633124692139,0.347458,48161.0,48158.0,0.0012065]
[1633124692942,0.311458,48161.0,48158.0,0.0012065]
[1633124693542,0.346458,48161.0,48158.0,0.0012065]
[1633124694943,0.311458,48161.0,48159.0,0.00566513]
[1633124695143,0.03200441,48160.0,48159.0,0.00566513]
[1633124697545,0.06700441,48160.0,48159.0,0.00566513]
[1633124698949,0.03200441,48160.0,48159.0,0.00566513]
[1633124699550,0.06700441,48160.0,48159.0,0.00566513]
[1633124700354,0.01374326,48157.0,48155.0,0.0012696]
[1633124700753,0.22139798,48157.0,48155.0,0.0012696]
[1633124701554,0.25839798,48157.0,48155.0,0.0012696]
[1633124701954,0.05074326,48157.0,48155.0,0.0012696]
[1633124703217,0.01374326,48157.0,48155.0,0.0012696]
[1633124703553,0.04374326,48157.0,48155.0,0.0012696]
[1633124703755,0.03374326,48157.0,48155.0,0.0012696]
[1633124704953,0.00374326,48157.0,48155.0,0.0012696]
[1633124705556,0.04374326,48157.0,48155.0,0.0012696]
[1633124705756,0.04374326,48157.0,48156.0,0.00129082]
[1633124706356,0.04374326,48157.0,48156.0,0.00555759]
[1633124706958,0.00374326,48157.0,48156.0,0.00555759]
[1633124707359,0.00374326,48157.0,48156.0,0.00531707]
[1633124707558,0.04174326,48157.0,48156.0,0.00531707]
[1633124708959,0.00374326,48157.0,48156.0,0.00531707]
[1633124709228,0.03856946,48157.0,48156.0,0.0010503]
[1633124709561,0.07956946,48157.0,48156.0,0.0010503]
[1633124709762,0.08000556,48157.0,48156.0,0.0010503]
[1633124711763,0.08000556,48157.0,48156.0,0.00531703]
[1633124711764,0.04517936,48157.0,48156.0,0.00531703]
[1633124711964,0.04517936,48157.0,48153.0,1.98439382]
[1633124712566,0.04517936,48157.0,48152.0,0.209043]
[1633124713165,0.00417936,48157.0,48152.0,0.209043]
[1633124713566,0.03217936,48157.0,48152.0,0.226043]
[1633124713769,0.02717936,48157.0,48152.0,0.226043]
[1633124714763,0.03695234,48156.0,48152.0,0.226043]
[1633124714966,0.03695234,48156.0,48152.0,0.209043]
[1633124715164,0.0531,48155.0,48152.0,0.209043]
[1633124715565,0.0531,48155.0,48152.0,0.230043]
[1633124717165,0.0531,48155.0,48152.0,0.209043]
[1633124717566,0.0771,48155.0,48152.0,0.234043]
[1633124718970,0.0531,48155.0,48152.0,0.209043]
[1633124719565,0.0701,48155.0,48152.0,0.234043]
[1633124720166,0.03694876,48154.0,48152.0,0.234043]
[1633124720369,0.0531,48153.0,48152.0,0.234043]
[1633124720966,0.0531,48153.0,48152.0,0.209043]
[1633124721768,0.0611,48153.0,48152.0,0.238043]
[1633124722568,0.0611,48153.0,48152.0,0.233043]
[1633124723572,0.0531,48153.0,48152.0,0.204043]
[1633124723773,0.0611,48153.0,48152.0,0.232043]
[1633124724973,0.0531,48153.0,48152.0,0.204043]
[1633124725373,0.0531,48153.0,48152.0,0.0006]
[1633124725773,0.11704518,48153.0,48152.0,0.0286]
[1633124727376,0.11704518,48153.0,48152.0,1.13383418]
[1633124727576,0.09004518,48153.0,48152.0,1.10636428]
[1633124727775,0.09004518,48153.0,48152.0,1.13736428]
[1633124727776,0.11004518,48153.0,48152.0,1.13736428]
[1633124727975,0.11004518,48153.0,48152.0,1.36056428]
[1633124728178,0.0731,48153.0,48152.0,1.13736428]
[1633124728578,0.0731,48153.0,48152.0,1.35248028]
[1633124728977,0.0731,48153.0,48152.0,1.57568028]
[1633124729176,0.0531,48153.0,48152.0,1.54468028]
[1633124729776,0.0531,48153.0,48152.0,1.58068028]
[1633124729975,0.0531,48153.0,48152.0,1.88068028]
[1633124730379,0.0531,48153.0,48152.0,1.88015018]
[1633124730576,0.0531,48153.0,48152.0,1.58015018]
[1633124730777,0.0531,48153.0,48152.0,1.58068028]
[1633124730978,0.0531,48153.0,48152.0,1.54415018]
[1633124731177,0.0531,48153.0,48152.0,1.52711038]
[1633124731379,0.09004525,48153.0,48152.0,1.30391038]
[1633124731777,0.09004525,48153.0,48152.0,1.33891038]
[1633124731982,0.09004525,48153.0,48152.0,0.25135018]
[1633124732377,0.09004525,48153.0,48152.0,1.14023418]
[1633124732577,0.09004525,48153.0,48152.0,1.35535018]
[1633124732977,0.09004525,48153.0,48152.0,1.32035018]
[1633124733382,0.09004525,48153.0,48152.0,1.319116]
[1633124733778,0.0531,48153.0,48152.0,1.354116]
[1633124734782,0.0531,48153.0,48152.0,1.87913775]
[1633124734984,0.0531,48153.0,48152.0,1.84413775]
[1633124735183,0.0531,48153.0,48152.0,2.23234966]
[1633124735385,0.05757888,48170.0,48152.0,2.2336279]
[1633124735583,0.0531,48169.0,48158.0,0.00124444]
[1633124735787,0.0531,48169.0,48159.0,0.0005301]
[1633124736246,0.0531,48169.0,48159.0,0.2080991]
[1633124736386,0.0531,48169.0,48159.0,0.5080991]
[1633124736788,0.09008908,48169.0,48159.0,0.5080991]
[1633124736988,0.09008908,48169.0,48159.0,0.507569]
[1633124737386,0.09008908,48169.0,48159.0,0.207569]
[1633124737791,0.12108908,48169.0,48159.0,0.527569]
[1633124739253,0.0841,48169.0,48159.0,0.527569]
[1633124739789,0.0821,48169.0,48159.0,0.534569]
[1633124741188,0.0531,48169.0,48159.0,0.507569]
[1633124741390,0.0531,48168.0,48159.0,0.507569]
[1633124741788,0.0531,48168.0,48159.0,0.535569]
[1633124742252,0.03698551,48167.0,48159.0,0.535569]
[1633124742393,0.0531,48166.0,48159.0,0.235569]
[1633124743588,0.0531,48166.0,48159.0,0.207569]
[1633124743792,0.0721,48166.0,48159.0,0.238569]
[1633124744992,0.0721,48166.0,48159.0,0.538569]
[1633124745192,0.2119548,48177.0,48164.0,0.00128901]
[1633124745390,0.00121371,48180.0,48160.0,0.37847225]
[1633124745590,0.00174358,48180.0,48160.0,0.37847225]
[1633124745791,0.035,48177.0,48164.0,0.009]
[1633124746391,0.035,48177.0,48164.0,0.42407]
[1633124746590,0.035,48177.0,48168.0,0.207537]
[1633124746791,0.035,48177.0,48169.0,0.31951886]
[1633124747189,0.00124145,48184.0,48169.0,0.31951886]
[1633124747391,0.311294,48183.0,48169.0,0.31951886]
[1633124747595,0.31182387,48183.0,48169.0,0.31951886]
[1633124747792,0.34885684,48183.0,48169.0,0.32851886]
[1633124747991,0.03703297,48183.0,48169.0,0.32851886]
[1633124748592,0.03703297,48183.0,48175.0,0.207513]
[1633124748795,0.03703297,48183.0,48176.0,0.19985434]
[1633124748993,0.0531,48182.0,48176.0,0.19985434]
[1633124749791,0.0861,48182.0,48176.0,0.02]
[1633124750592,0.0861,48182.0,48176.0,0.227503]
[1633124751253,0.0531,48182.0,48176.0,0.207503]
[1633124751392,0.054517,48182.0,48176.0,0.207503]
[1633124751793,0.082517,48182.0,48176.0,0.233503]
[1633124752998,0.082517,48182.0,48177.0,0.26224522]
[1633124753195,0.054517,48182.0,48177.0,0.26224522]
[1633124753399,0.00020164,48178.0,48177.0,0.26224522]
[1633124753798,0.00020164,48178.0,48177.0,0.29124522]
[1633124755798,0.00020164,48178.0,48177.0,0.29424522]
[1633124756198,0.0531,48179.0,48177.0,0.29424522]
[1633124756399,0.0531,48179.0,48178.0,0.24306797]
[1633124757798,0.0531,48179.0,48178.0,0.27606797]
[1633124758801,0.09014039,48179.0,48178.0,0.27606797]
[1633124759398,0.09014039,48179.0,48178.0,0.24306797]
[1633124759797,0.09014039,48179.0,48178.0,0.26278297]
[1633124760001,0.09014039,48179.0,48178.0,0.29578297]
[1633124760798,0.09014039,48179.0,48178.0,0.60702697]
[1633124761000,0.09014039,48179.0,48178.0,0.29578297]
[1633124761198,0.0531,48179.0,48178.0,0.26278297]
[1633124761398,0.0531,48179.0,48178.0,0.56278297]
[1633124761599,0.0531,48179.0,48178.0,0.26278297]
[1633124761800,0.0481,48179.0,48178.0,0.26278297]
[1633124762001,0.001417,48182.0,48178.0,0.29478297]
[1633124763400,0.001417,48182.0,48178.0,0.26278297]
[1633124764001,0.020417,48182.0,48178.0,0.27428297]
[1633124764402,0.03704593,48181.0,48178.0,0.27428297]
[1633124765203,0.03704593,48181.0,48178.0,0.24328297]
[1633124765403,0.03704593,48181.0,48178.0,0.019715]
[1633124765604,0.311315,48180.0,48178.0,0.019715]
[1633124765805,0.215114,48179.0,48178.0,0.019715]
[1633124766003,0.215114,48179.0,48178.0,0.051715]
[1633124767204,0.215114,48179.0,48178.0,0.019715]
[1633124767607,0.001417,48182.0,48178.0,0.019715]
[1633124767809,0.02,48179.0,48178.0,0.050715]
[1633124769272,0.311297,48180.0,48178.0,0.019715]
[1633124769807,0.25215635,48179.0,48178.0,0.050715]
[1633124770207,0.66726735,48179.0,48178.0,0.050715]
[1633124770806,0.25215635,48179.0,48178.0,0.050715]
[1633124771011,0.25215635,48179.0,48178.0,0.02489321]
[1633124771208,0.25215635,48179.0,48176.0,0.207503]
[1633124771811,0.00127247,48177.0,48176.0,0.207503]
[1633124772279,0.00127247,48177.0,48176.0,0.239503]
[1633124773116,0.001,48179.0,48176.0,0.47534881]
[1633124773519,0.001,48179.0,48177.0,0.31126]
[1633124773714,0.001,48179.0,48176.0,0.24076495]
[1633124773917,0.001417,48182.0,48176.0,0.24076495]
[1633124774114,0.001417,48182.0,48177.0,0.21853652]
[1633124774319,0.001417,48182.0,48176.0,0.24076495]
[1633124774517,0.00129323,48181.0,48177.0,0.23556291]
[1633124775115,0.00129323,48181.0,48180.0,0.44]
[1633124775316,0.00129323,48181.0,48177.0,0.22719577]
[1633124775519,0.001417,48182.0,48177.0,0.22130778]
[1633124775717,0.03704242,48180.0,48177.0,0.22130778]
[1633124775918,0.03704242,48180.0,48177.0,0.25230778]
[1633124777118,0.03704242,48180.0,48177.0,0.031]
[1633124777518,0.03704242,48180.0,48176.0,0.20876495]
[1633124777720,0.00271336,48182.0,48176.0,0.52004695]
[1633124777916,0.00271336,48182.0,48177.0,0.25144915]
[1633124778791,0.00271336,48182.0,48177.0,0.56272715]
[1633124779388,0.00271336,48182.0,48177.0,0.52972715]
[1633124779987,0.01671336,48182.0,48177.0,0.56172715]
[1633124781395,0.03704431,48181.0,48177.0,0.52972715]
[1633124781990,0.03704431,48181.0,48177.0,0.56172715]
[1633124782391,0.03704431,48181.0,48178.0,1.104]
[1633124782791,0.03704431,48181.0,48179.0,0.311244]
[1633124782991,0.03704431,48181.0,48180.0,0.22682801]
[1633124783192,0.001417,48182.0,48180.0,1.33082801]
[1633124783394,0.001417,48182.0,48181.0,0.22670415]
[1633124783594,0.001417,48182.0,48181.0,1.33070415]
[1633124783997,0.018417,48182.0,48181.0,1.36170415]
[1633124785396,0.001417,48182.0,48181.0,1.33070415]
[1633124786094,0.001417,48182.0,48181.0,1.36170415]
[1633124786894,0.03846867,48182.0,48181.0,1.36170415]
[1633124787095,0.03846867,48182.0,48181.0,1.135]
[1633124787494,0.03846867,48182.0,48181.0,1.104]
[1633124787893,0.03346867,48182.0,48181.0,1.104]
[1633124788095,0.04346867,48182.0,48181.0,1.137]
[1633124788697,0.01,48182.0,48181.0,1.137]
[1633124788896,0.01,48182.0,48181.0,1.14126451]
[1633124789099,0.01,48182.0,48181.0,0.03726451]
[1633124789297,0.05887682,48189.0,48181.0,0.00426451]
[1633124789496,0.05887682,48189.0,48184.0,0.207509]
[1633124789695,0.00120162,48189.0,48184.0,0.06307469]
[1633124789896,8.301e-05,48185.0,48184.0,0.06307469]
[1633124790099,0.0013348,48185.0,48184.0,0.07607469]
[1633124791498,0.00119424,48185.0,48184.0,0.06307469]
[1633124792099,0.00119424,48185.0,48184.0,0.07507469]
[1633124792100,0.25283811,48185.0,48184.0,0.07507469]
[1633124792300,0.25283811,48185.0,48178.0,0.2]
[1633124792301,0.10547342,48183.0,48178.0,0.2]
[1633124792501,0.00129206,48179.0,48178.0,0.2]
[1633124792700,0.21776711,48184.0,48178.0,0.2]
[1633124792900,0.07127117,48185.0,48178.0,0.2]
[1633124792901,0.0012927,48180.0,48178.0,0.2]
[1633124794103,0.019,48180.0,48178.0,0.225]
[1633124794306,0.019,48180.0,48179.0,0.00426473]
[1633124795104,0.019,48180.0,48179.0,1.10826473]
[1633124795501,0.21773346,48189.0,48179.0,0.00426473]
[1633124795705,0.2028744,48190.0,48179.0,0.31553573]
[1633124795706,0.20288156,48190.0,48179.0,0.31553573]
[1633124795903,0.14525926,48190.0,48179.0,0.31553573]
[1633124796102,0.032,48189.0,48179.0,0.33253573]
[1633124796503,0.032,48189.0,48183.0,0.207497]
[1633124796701,0.032,48189.0,48183.0,0.518743]
[1633124796905,0.032,48189.0,48183.0,0.50208615]
[1633124797105,0.032,48189.0,48183.0,1.60608615]
[1633124797501,0.032,48189.0,48183.0,1.49823255]
[1633124797704,0.0352767,48188.0,48185.0,0.311226]
[1633124798107,0.0352767,48188.0,48185.0,1.415226]
[1633124798309,0.0352767,48188.0,48186.0,0.30128731]
[1633124798505,0.0352767,48188.0,48187.0,1.36591788]
[1633124798908,0.05770769,48199.0,48187.0,1.67707788]
[1633124799106,0.0002,48201.0,48192.0,0.18668937]
[1633124799107,0.05771034,48200.0,48192.0,0.18668937]
[1633124799305,0.05771034,48200.0,48193.0,0.23536255]
[1633124799507,0.05792929,48201.0,48193.0,0.23536255]
[1633124799704,0.0002,48201.0,48194.0,0.01996529]
[1633124799904,0.0002,48201.0,48194.0,0.33112529]
[1633124800106,0.00011856,48195.0,48194.0,0.33112529]
[1633124800307,0.00011856,48195.0,48194.0,1.69274076]
[1633124800506,0.00011856,48195.0,48194.0,1.90017576]
[1633124800707,0.00011856,48195.0,48194.0,2.12337576]
[1633124800910,0.0172,48201.0,48197.0,0.311118]
[1633124801110,0.0172,48201.0,48198.0,1.34855632]
[1633124801307,0.0002,48201.0,48198.0,1.34855632]
[1633124802113,0.0122,48201.0,48198.0,1.37955632]
[1633124803308,0.01768759,48200.0,48198.0,1.37955632]
[1633124803509,0.01768759,48200.0,48199.0,0.23687417]
[1633124803909,0.01768759,48200.0,48199.0,0.54798717]
[1633124804112,0.01768759,48200.0,48199.0,0.58176595]
[1633124804413,0.01768759,48200.0,48199.0,0.56821771]
[1633124805210,0.0002,48201.0,48199.0,0.56821771]
[1633124805411,0.0002,48201.0,48200.0,0.22815587]
[1633124805812,0.00027113,48201.0,48200.0,0.22815587]
[1633124806210,0.00027113,48201.0,48200.0,0.26315587]
[1633124807010,0.00027113,48201.0,48200.0,0.26303427]
[1633124807411,0.00027113,48201.0,48200.0,0.22803427]
[1633124807814,0.00027113,48201.0,48199.0,0.03395423]
[1633124808214,0.00027113,48201.0,48200.0,0.036]
[1633124808612,0.00027113,48201.0,48200.0,0.25650617]
[1633124808812,0.01796243,48201.0,48200.0,0.25650617]
[1633124809613,0.01796243,48201.0,48200.0,0.22050617]
[1633124810213,0.01796243,48201.0,48200.0,0.25650617]
[1633124810611,0.01796243,48201.0,48200.0,0.45650617]
[1633124810814,0.00027113,48201.0,48200.0,0.47645377]
[1633124811012,0.00027113,48201.0,48200.0,0.41629951]
[1633124811413,0.36027113,48201.0,48200.0,0.3565662]
[1633124811616,0.00027113,48201.0,48200.0,0.3565662]
[1633124812019,0.00027113,48201.0,48200.0,0.2199476]
[1633124812214,0.00027113,48201.0,48200.0,0.2579476]
[1633124812617,0.00027113,48201.0,48200.0,0.2260364]
[1633124813014,0.00027113,48201.0,48200.0,1.3300364]
[1633124813415,0.00027113,48201.0,48200.0,1.2920364]
[1633124814015,0.00027113,48201.0,48200.0,1.3300364]
[1633124814214,0.00027113,48201.0,48200.0,1.3100888]
[1633124814415,0.0179625,48201.0,48200.0,1.3100888]
[1633124815616,0.0179625,48201.0,48200.0,1.2720888]
[1633124816015,0.0179625,48201.0,48200.0,1.4100888]
[1633124816222,0.00027113,48201.0,48200.0,1.4050888]
[1633124816422,0.00027113,48201.0,48200.0,1.4250364]
[1633124816817,0.00027113,48211.0,48200.0,1.4250364]
[1633124817017,0.00027113,48211.0,48205.0,0.207404]
[1633124817218,0.00027113,48211.0,48206.0,0.2161831]
[1633124817419,0.00027113,48211.0,48208.0,0.2]
[1633124817627,0.00027113,48211.0,48209.0,0.21706131]
[1633124817821,0.00027113,48211.0,48208.0,0.2]
[1633124818018,0.00010668,48210.0,48208.0,0.2]
[1633124819622,0.00010668,48210.0,48208.0,0.05563657]
[1633124819820,0.61772238,48209.0,48208.0,0.05563657]
[1633124820019,0.01772238,48209.0,48208.0,0.07763657]
[1633124821423,0.01772238,48209.0,48208.0,0.05563657]
[1633124821826,0.00010668,48210.0,48208.0,0.0755488]
[1633124822225,0.00010668,48210.0,48208.0,0.1085488]
[1633124822834,0.00010668,48210.0,48209.0,1.63847681]
[1633124823224,0.00010668,48210.0,48209.0,0.31227463]
[1633124823428,0.00010668,48210.0,48209.0,1.41627463]
[1633124824224,0.00010668,48210.0,48209.0,1.45227463]
[1633124825431,0.01783095,48210.0,48209.0,1.41627463]
[1633124825624,0.01712857,48210.0,48209.0,1.41627463]
[1633124826225,0.01712857,48210.0,48209.0,1.14022563]
[1633124827233,0.00027113,48211.0,48209.0,1.16043129]
[1633124827429,0.00027113,48211.0,48210.0,0.2180885]
[1633124827629,0.00027113,48211.0,48210.0,1.3220885]
[1633124828231,0.00027113,48211.0,48210.0,1.3570885]
[1633124829294,0.0006,48213.0,48211.0,0.01372887]
[1633124829430,0.0006,48213.0,48211.0,1.11772887]
[1633124830231,0.0006,48213.0,48211.0,1.15272887]
[1633124830834,0.01783376,48212.0,48211.0,1.15272887]
[1633124831635,0.01783376,48212.0,48211.0,1.11772887]
[1633124832296,0.01783376,48212.0,48211.0,1.15272887]
[1633124832836,0.0004,48212.0,48211.0,1.17292569]
[1633124833437,0.0004,48212.0,48211.0,1.13792569]
[1633124834035,0.05804605,48221.0,48211.0,1.13792569]
[1633124834234,0.05804751,48221.0,48214.0,0.207376]
[1633124834435,0.00052987,48220.0,48214.0,0.207376]
[1633124834836,0.311072,48217.0,48214.0,0.207376]
[1633124835302,0.00121506,48215.0,48211.0,0.06092569]
[1633124835637,0.2086815,48218.0,48211.0,0.03392569]
[1633124835843,0.19921137,48218.0,48211.0,0.03392569]
[1633124836036,0.00052987,48217.0,48211.0,0.03392569]
[1633124836234,0.311075,48215.0,48211.0,0.02972887]
[1633124836433,0.311075,48215.0,48211.0,0.12972887]
[1633124836634,0.00052987,48214.0,48211.0,0.12972887]
[1633124836837,0.0012785,48213.0,48211.0,0.12972887]
[1633124837636,0.0012785,48213.0,48211.0,0.11372887]
[1633124838307,0.0012785,48213.0,48211.0,0.11472887]
[1633124838441,0.0012785,48213.0,48212.0,0.02019461]
[1633124838639,0.67,48212.0,48211.0,0.07433965]
[1633124839040,0.28788213,48213.0,48211.0,0.07433965]
[1633124839437,0.49529813,48213.0,48211.0,0.07433965]
[1633124839637,0.49529813,48213.0,48211.0,0.07333965]
[1633124841841,0.69753302,48212.0,48211.0,0.07333965]
[1633124842042,0.91264702,48212.0,48211.0,0.07333965]
[1633124843045,0.91389708,48212.0,48211.0,0.07333965]
[1633124843648,0.88636406,48212.0,48211.0,0.07333965]
[1633124843844,0.88636406,48212.0,48211.0,0.08343916]
[1633124844243,0.923114,48212.0,48211.0,0.09243916]
[1633124844444,0.253114,48212.0,48211.0,0.09243916]
[1633124845245,0.463114,48212.0,48211.0,0.09243916]
[1633124845645,0.425114,48212.0,48211.0,0.08343916]
[1633124846253,0.464114,48212.0,48211.0,0.08743916]
[1633124847311,0.49164527,48212.0,48211.0,0.07733965]
[1633124847446,0.45264527,48212.0,48211.0,0.07333965]
[1633124847847,0.67584527,48212.0,48211.0,0.07333965]
[1633124848049,0.67767447,48212.0,48211.0,0.07333965]
[1633124848246,1.05267447,48212.0,48211.0,0.07333965]
[1633124848447,1.11073027,48212.0,48211.0,0.07333965]
[1633124848649,0.88253027,48212.0,48211.0,0.07333965]
[1633124849248,0.8550028,48212.0,48211.0,0.08343916]
[1633124849449,0.7969432,48212.0,48211.0,0.08343916]
[1633124849650,0.06091863,48207.0,48199.0,0.20743]
[1633124849848,0.21307838,48206.0,48199.0,0.20743]
[1633124850248,0.311158,48203.0,48199.0,0.23143]
[1633124850448,0.311158,48203.0,48199.0,0.024]
[1633124850648,0.311158,48203.0,48202.0,7.113e-05]
[1633124850849,0.526265,48203.0,48202.0,7.113e-05]
[1633124851047,0.526265,48203.0,48199.0,0.00091842]
[1633124851048,0.885107,48202.0,48199.0,0.00091842]
[1633124851453,1.196272,48202.0,48199.0,0.00091842]
[1633124851649,1.40373532,48202.0,48194.0,0.207456]
[1633124851848,0.22592445,48201.0,48194.0,0.207456]
[1633124852249,0.22592445,48201.0,48194.0,0.223456]
[1633124852450,0.311196,48198.0,48194.0,0.016]
[1633124852650,0.41731979,48197.0,48194.0,0.016]
[1633124852949,0.215107,48196.0,48194.0,0.016]
[1633124853149,0.67128963,48195.0,48194.0,0.016]
[1633124853348,0.8869265,48195.0,48194.0,0.016]
[1633124853752,1.1101265,48195.0,48190.0,0.2]
[1633124853956,0.681248,48191.0,48190.0,0.2]
[1633124854150,1.1167998,48191.0,48190.0,0.2]
[1633124854353,0.89688487,48191.0,48190.0,0.20014229]
[1633124854748,1.20817587,48191.0,48190.0,0.20528491]
[1633124855151,1.43262529,48191.0,48190.0,0.20528491]
[1633124855551,1.20942529,48191.0,48190.0,0.20528491]
[1633124855951,1.20942529,48191.0,48190.0,0.19528491]
[1633124856155,1.43262529,48191.0,48190.0,4.91e-06]
[1633124856350,1.46362529,48191.0,48190.0,4.91e-06]
[1633124856554,1.46362529,48191.0,48190.0,0.10000491]
[1633124857752,1.43262529,48191.0,48190.0,0.10000491]
[1633124858155,1.43262529,48191.0,48190.0,0.1]
[1633124858355,0.59649885,48191.0,48190.0,0.1]
[1633124858755,0.59596898,48191.0,48190.0,0.1]
[1633124858956,0.81969885,48191.0,48190.0,0.1]
[1633124859556,1.09649885,48191.0,48190.0,0.1]
[1633124859754,1.06449885,48191.0,48190.0,0.1]
[1633124860155,0.56449885,48191.0,48190.0,0.1]
[1633124860355,0.55942529,48191.0,48190.0,0.10426372]
[1633124861559,0.52942529,48191.0,48190.0,0.10426372]
[1633124861760,0.21760442,48191.0,48190.0,0.10426372]
[1633124862419,0.24860442,48191.0,48190.0,0.10426372]
[1633124862622,0.55987842,48191.0,48190.0,0.10426372]
[1633124863024,0.24860442,48191.0,48190.0,0.10426372]
[1633124863624,0.21760442,48191.0,48190.0,0.10426372]
[1633124863823,0.25267804,48191.0,48190.0,0.1]
[1633124864223,0.28367804,48191.0,48190.0,0.1]
[1633124865621,0.25267804,48191.0,48190.0,0.1]
[1633124865822,0.21760442,48191.0,48190.0,0.10426372]
[1633124866228,0.24860442,48191.0,48190.0,0.10426372]
[1633124867631,0.71860442,48191.0,48190.0,0.10426372]
[1633124867827,0.69,48190.0,48172.0,0.27901657]
[1633124868028,0.207549,48187.0,48171.0,0.18678136]
[1633124868227,0.00052987,48186.0,48171.0,0.18678136]
[1633124868425,0.00125285,48186.0,48171.0,0.18678136]
[1633124868627,0.00125285,48186.0,48178.0,0.20754]
[1633124869028,0.22449317,48186.0,48178.0,0.20754]
[1633124869228,0.03717458,48185.0,48178.0,0.20754]
[1633124869427,0.311323,48182.0,48178.0,0.20754]
[1633124870227,0.348323,48182.0,48178.0,0.20754]
[1633124870630,0.348323,48182.0,48178.0,0.19754]
[1633124870828,0.20890064,48181.0,48178.0,0.19754]
[1633124871027,0.348323,48182.0,48178.0,0.19754]
[1633124871229,0.89935577,48181.0,48180.0,0.00011861]
[1633124871439,0.348323,48182.0,48180.0,0.00011861]
[1633124871637,0.311323,48182.0,48180.0,0.00011861]
[1633124871836,0.23986694,48186.0,48181.0,0.00010674]
[1633124872038,0.215107,48185.0,48181.0,0.00010674]
[1633124872241,0.035,48182.0,48181.0,0.00010674]
[1633124872437,0.035,48182.0,48178.0,0.19754]
[1633124872840,0.035,48182.0,48179.0,0.0005301]
[1633124873639,0.21702925,48186.0,48178.0,0.19754]
[1633124874242,0.25202925,48186.0,48178.0,0.19754]
[1633124874445,0.25202925,48186.0,48179.0,0.02061309]
[1633124874640,0.215107,48185.0,48179.0,0.02061309]
[1633124874845,0.25228165,48185.0,48179.0,0.02061309]
[1633124875043,0.69,48184.0,48179.0,0.01568425]
[1633124875243,0.215107,48183.0,48179.0,0.01568425]
[1633124875642,0.526424,48183.0,48179.0,0.01568425]
[1633124876243,0.561424,48183.0,48179.0,0.01568425]
[1633124876643,0.561424,48183.0,48179.0,0.11568425]
[1633124877646,0.311317,48183.0,48179.0,0.11568425]
[1633124878445,0.345317,48183.0,48179.0,0.11568425]
[1633124879649,0.340317,48183.0,48179.0,0.11568425]
[1633124880447,0.03717107,48182.0,48179.0,0.11568425]
[1633124881250,0.311307,48181.0,48179.0,0.11568425]
[1633124882450,0.346307,48181.0,48179.0,0.11568425]
[1633124884054,0.311307,48181.0,48179.0,0.11568425]
[1633124884452,0.347307,48181.0,48179.0,0.11568425]
[1633124884652,0.705107,48180.0,48179.0,0.11568425]
[1633124885454,0.215107,48180.0,48179.0,0.11568425]
[1633124885854,0.25227268,48180.0,48179.0,0.11568425]
[1633124886455,0.28827268,48180.0,48179.0,0.11568425]
[1633124887654,0.251107,48180.0,48179.0,0.11568425]
[1633124887865,0.215107,48180.0,48179.0,0.11568425]
[1633124888457,0.251107,48180.0,48179.0,0.11568425]
[1633124889856,0.215107,48180.0,48179.0,0.11568425]
[1633124890258,0.311307,48181.0,48179.0,0.11568425]
[1633124890463,0.506,48180.0,48179.0,0.11568425]
[1633124890661,0.721107,48180.0,48179.0,0.11568425]
[1633124891058,0.251107,48180.0,48179.0,0.11568425]
[1633124891257,0.28827274,48180.0,48179.0,0.11568425]
[1633124891660,0.25227274,48180.0,48179.0,0.11568425]
[1633124892459,0.28827274,48180.0,48179.0,0.11568425]
[1633124893259,0.252107,48180.0,48179.0,0.11568425]
[1633124893862,0.216107,48180.0,48179.0,0.11568425]
[1633124894463,0.249107,48180.0,48179.0,0.11568425]
[1633124895665,0.216107,48180.0,48179.0,0.11568425]
[1633124896263,0.127414,48181.0,48179.0,0.11568425]
[1633124896460,0.503,48180.0,48179.0,0.11568425]
[1633124896862,0.54016763,48180.0,48179.0,0.11568425]
[1633124897262,0.75527963,48180.0,48179.0,0.11568425]
[1633124897863,0.72227963,48180.0,48179.0,0.11568425]
[1633124898466,0.75627963,48180.0,48179.0,0.11568425]
[1633124898864,0.719112,48180.0,48179.0,0.11568425]
[1633124899067,0.249112,48180.0,48179.0,0.11568425]
[1633124899867,0.215112,48180.0,48179.0,0.11568425]
[1633124900064,0.127414,48181.0,48179.0,0.11568425]
[1633124900465,0.444,48180.0,48179.0,0.11568425]
[1633124901870,0.41,48180.0,48179.0,0.11568425]
[1633124902469,0.48116588,48180.0,48179.0,0.11568425]
[1633124903075,0.69627788,48180.0,48179.0,0.11568425]
[1633124903670,0.94227788,48180.0,48179.0,0.11068425]
[1633124903871,0.65227788,48180.0,48179.0,0.11068425]
[1633124904070,0.25227788,48180.0,48179.0,0.11068425]
[1633124904340,0.215112,48180.0,48179.0,0.11068425]
[1633124904470,0.034,48180.0,48179.0,0.11068425]
[1633124905672,0.127414,48181.0,48179.0,0.11068425]
[1633124906081,0.127414,48181.0,48179.0,0.01068425]
[1633124906473,0.161414,48181.0,48179.0,0.01068425]
[1633124906673,0.161414,48181.0,48172.0,0.01068425]
[1633124907874,0.03715501,48180.0,48172.0,0.01068425]
[1633124908471,0.07415501,48180.0,48172.0,0.01068425]
[1633124909674,0.311327,48176.0,48172.0,0.01068425]
[1633124910074,0.311327,48176.0,48175.0,0.00010675]
[1633124910475,0.346327,48176.0,48175.0,0.00010675]
[1633124911283,0.561439,48176.0,48175.0,0.00010675]
[1633124911878,0.526439,48176.0,48175.0,0.00010675]
[1633124912277,0.526439,48176.0,48175.0,0.010791]
[1633124912479,0.559439,48176.0,48175.0,0.013791]
[1633124913078,0.389439,48176.0,48175.0,0.013791]
[1633124913278,0.42659044,48176.0,48175.0,0.013791]
[1633124913679,0.39359044,48176.0,48175.0,0.010791]
[1633124914479,0.42959044,48176.0,48175.0,0.012791]
[1633124914880,0.42959044,48176.0,48175.0,0.01151835]
[1633124915279,0.392439,48176.0,48175.0,0.01151835]
[1633124915883,0.356439,48176.0,48175.0,0.00951835]
[1633124916485,0.392439,48176.0,48175.0,0.00951835]
[1633124916883,0.392439,48176.0,48172.0,0.00951835]
[1633124917086,0.177327,48176.0,48172.0,0.00951835]
[1633124917686,0.141327,48176.0,48172.0,0.00951835]
[1633124918084,0.13851549,48176.0,48172.0,0.00951835]
[1633124918484,0.17551549,48176.0,48172.0,0.01251835]
[1633124918885,0.03714604,48175.0,48172.0,0.01251835]
[1633124919884,0.03714604,48175.0,48172.0,0.00951835]
[1633124920484,0.06814604,48175.0,48172.0,0.01751835]
[1633124920683,0.031,48175.0,48172.0,0.01751835]